Workbook

Sheet 部门收支总表
A1: 2018年部门预算收支总表
A2: 填报单位：临湘市商务粮食局 | F2: 单位：元
A3: 收入 | C3: 支出(经济分类） | E3: 支出（功能科目）
A4: 一般预算拨款（补助） | B4: 24996184.00 | C4: 基本支出 | D4: 21890348.19 | E4: 201、一般公共服务支出 | F4: 22066784.51
A5: 经费拨款 | B5: 10796184.00 | C5: 301、工资福利支出 | D5: 20122008.19 | E5: 202、外交支出 | F5: 0.00
A6: 纳入预算管理的非税收入拨款 | B6: 14200000.00 | C6: 302、商品和服务支出 | D6: 1730000.00 | E6: 203、国防支出 | F6: 0.00
A7: 纳入专户管理的非税收入拨款 | B7: 0.00 | C7: 303、对个人和家庭的补助 | D7: 38340.00 | E7: 204、公共安全支出 | F7: 0.00
A8: 政府性基金拨款 | B8: 0.00 | C8: 项目支出 | D8: 5427367.16 | E8: 205、教育支出 | F8: 0.00
A9: 事业单位经营收入 | B9: 0.00 | C9: 302、商品和服务支出 | D9: 5427367.16 | E9: 206、科学技术支出 | F9: 0.00
A10: 上级补助收入 | B10: 0.00 | C10: 303、对个人和家庭的补助 | D10: 0.00 | E10: 207、文化体育与传媒支出 | F10: 0.00
A11: 附属单位上缴收入 | B11: 0.00 | C11: 307、债务利息及费用支出 | D11: 0.00 | E11: 208、社会保障和就业支出 | F11: 3365624.24
A12: 其他收入 | B12: 2321531.35 | C12: 309、资本性支出（基本建设） | D12: 0.00 | E12: 209、社保基金支出 | F12: 0.00
A13: 上年结转 | B13: 0.00 | C13: 310、资本性支出 | D13: 0.00 | E13: 210、医疗卫生与计划生育支出 | F13: 0.00
C14: 311、对企业补助（基本建设） | D14: 0.00 | E14: 211、节能环保支出 | F14: 0.00
C15: 312、对企业补助 | D15: 0.00 | E15: 212、城乡社区支出 | F15: 0.00
C16: 313、对社会保障金补助 | D16: 0.00 | E16: 213、农林水支出 | F16: 0.00
C17: 399、其他支出 | D17: 0.00 | E17: 214、交通运输支出 | F17: 0.00
E18: 215、资源勘探信息等支出 | F18: 0.00
E19: 216、商业服务业等支出 | F19: 738316.76
E20: 217、金融支出 | F20: 0.00
E21: 219、援助其他地区支出 | F21: 0.00
E22: 220、国土海洋气象等支出 | F22: 0.00
E23: 221、住房保障支出 | F23: 1146989.84
E24: 222、粮油物资储备支出 | F24: 0.00
E25: 223、国有资本经营预算支出 | F25: 0.00
E26: 227、预备费 | F26: 0.00
E27: 229、其他支出 | F27: 0.00
E28: 230、转移性支出 | F28: 0.00
E29: 231、债务还本支出 | F29: 0.00
E30: 232、债务付息支出 | F30: 0.00
E31: 233、债务发行费用支出 | F31: 0.00
A33: 本年收入合计 | B33: 27,317,715.35 | C33: 本年支出合计 | D33: 27,317,715.35 | E33: 本年支出合计 | F33: 27,317,715.35

Sheet 部门收入总表
A2: 部门收入总体情况表
A3: 单位临湘市商务粮食局 | K3: 单位：万元
A4: 单位 | C4: 总计 | D4: 一般预算拨款 | F4: 纳入专户管理的非税收入拨款 | G4: 政府性基金拨款 | H4: 上级补助收入 | I4: 附属单位上缴收入 | J4: 其他收入 | K4: 上年结转
A5: 单位代码 | B5: 单位名称 | D5: 经费拨款 | E5: 纳入预算管理的非税收入拨款
B6: 合计 | C6: =SUM(C7:C12) -> 27317715.35 | D6: 10796184.00 | E6: 14200000.00 | F6: 0.00 | G6: 0.00 | H6: 0.00 | I6: 0.00 | J6: 2321531.35 | K6: 0.00
A7: 801004 | B7: 外经股 | C7: 291146.20 | D7: 272146.20 | E7: 0.00 | F7: 0.00 | G7: 0.00 | H7: 0.00 | I7: 0.00 | J7: 19000.00 | K7: 0.00
A8: 801001 | B8: 外经股 | C8: 7440762.95 | D8: 5340667.20 | E8: 100000.00 | F8: 0.00 | G8: 0.00 | H8: 0.00 | I8: 0.00 | J8: 2000095.75 | K8: 0.00
A9: 801002 | B9: 外经股 | C9: 1244055.80 | D9: 1144055.80 | E9: 100000.00 | F9: 0.00 | G9: 0.00 | H9: 0.00 | I9: 0.00 | J9: 0.00 | K9: 0.00
A10: 801003 | B10: 外经股 | C10: 929305.40 | D10: 644869.80 | E10: 0.00 | F10: 0.00 | G10: 0.00 | H10: 0.00 | I10: 0.00 | J10: 284435.60 | K10: 0.00
A11: 801006 | B11: 外经股 | C11: 17128468.60 | D11: 3128468.60 | E11: 14000000.00 | F11: 0.00 | G11: 0.00 | H11: 0.00 | I11: 0.00 | J11: 0.00 | K11: 0.00
A12: 801005 | B12: 外经股 | C12: 283976.40 | D12: 265976.40 | E12: 0.00 | F12: 0.00 | G12: 0.00 | H12: 0.00 | I12: 0.00 | J12: 18000.00 | K12: 0.00

Sheet 部门支出总表
A2: 部门支出总体情况表
A3: 单位:临湘市商务粮食局 | K3: 单位：万元
A4: 功能科目 | E4: 总计 | F4: 一般预算拨款 | H4: 纳入专户管理的非税收入拨款 | I4: 政府性基金拨款 | J4: 上级补助收入 | K4: 其他收入
A5: 类 | B5: 款 | C5: 项 | D5: 科目名称 | F5: 经费拨款 | G5: 纳入预算管理的非税收入拨款
D6: 合计 | E6: =SUM(E7:E28) -> 27317715.35 | F6: 10796184.00 | G6: 14200000.00 | H6: 0.00 | I6: 0.00 | J6: 0.00 | K6: 2321531.35
A7: 201 | B7: 13 | C7: 99 | D7: 其他商贸事务支出 | E7: 13908790.84 | F7: 2808586.52 | G7: 11100204.32 | H7: 0.00 | I7: 0.00 | J7: 0.00 | K7: 0.00
A8: 201 | B8: 13 | C8: 99 | D8: 其他商贸事务支出 | E8: 10000.00 | F8: 0.00 | G8: 10000.00 | H8: 0.00 | I8: 0.00 | J8: 0.00 | K8: 0.00
A9: 201 | B9: 13 | C9: 50 | D9: 事业运行（商贸事务） | E9: 230478.48 | F9: 212478.48 | G9: 0.00 | H9: 0.00 | I9: 0.00 | J9: 0.00 | K9: 18000.00
A10: 201 | B10: 13 | C10: 01 | D10: 行政运行（商贸事务） | E10: 6685002.79 | F10: 4799631.04 | G10: 100000.00 | H10: 0.00 | I10: 0.00 | J10: 0.00 | K10: 1785371.75
A11: 201 | B11: 13 | C11: 50 | D11: 事业运行（商贸事务） | E11: 996977.56 | F11: 906977.56 | G11: 90000.00 | H11: 0.00 | I11: 0.00 | J11: 0.00 | K11: 0.00
A12: 201 | B12: 13 | C12: 50 | D12: 事业运行（商贸事务） | E12: 235534.84 | F12: 216534.84 | G12: 0.00 | H12: 0.00 | I12: 0.00 | J12: 0.00 | K12: 19000.00
A13: 208 | B13: 05 | C13: 06 | D13: 机关事业单位职业年金缴费支出 | E13: 107362.00 | F13: 0.00 | G13: 0.00 | H13: 0.00 | I13: 0.00 | J13: 0.00 | K13: 107362.00
A14: 208 | B14: 05 | C14: 05 | D14: 机关事业单位基本养老保险缴费支出 | E14: 38212.80 | F14: 38212.80 | G14: 0.00 | H14: 0.00 | I14: 0.00 | J14: 0.00 | K14: 0.00
A15: 208 | B15: 05 | C15: 06 | D15: 机关事业单位职业年金缴费支出 | E15: 14793.60 | F15: 0.00 | G15: 0.00 | H15: 0.00 | I15: 0.00 | J15: 0.00 | K15: 14793.60
A16: 208 | B16: 05 | C16: 05 | D16: 机关事业单位基本养老保险缴费支出 | E16: 169341.60 | F16: 169341.60 | G16: 0.00 | H16: 0.00 | I16: 0.00 | J16: 0.00 | K16: 0.00
A17: 208 | B17: 05 | C17: 05 | D17: 机关事业单位基本养老保险缴费支出 | E17: 125853.60 | F17: 88869.60 | G17: 0.00 | H17: 0.00 | I17: 0.00 | J17: 0.00 | K17: 36984.00
A18: 208 | B18: 05 | C18: 05 | D18: 机关事业单位基本养老保险缴费支出 | E18: 1839484.80 | F18: 228487.20 | G18: 1610997.60 | H18: 0.00 | I18: 0.00 | J18: 0.00 | K18: 0.00
A19: 208 | B19: 05 | C19: 05 | D19: 机关事业单位基本养老保险缴费支出 | E19: 386454.40 | F19: 386454.40 | G19: 0.00 | H19: 0.00 | I19: 0.00 | J19: 0.00 | K19: 0.00
A20: 208 | B20: 05 | C20: 06 | D20: 机关事业单位职业年金缴费支出 | E20: 644399.04 | F20: 0.00 | G20: 644399.04 | H20: 0.00 | I20: 0.00 | J20: 0.00 | K20: 0.00
A21: 208 | B21: 05 | C21: 05 | D21: 机关事业单位基本养老保险缴费支出 | E21: 39722.40 | F21: 39722.40 | G21: 0.00 | H21: 0.00 | I21: 0.00 | J21: 0.00 | K21: 0.00
A22: 216 | B22: 02 | C22: 02 | D22: 一般行政管理事务（商业流通事务） | E22: 738316.76 | F22: 520452.36 | G22: 0.00 | H22: 0.00 | I22: 0.00 | J22: 0.00 | K22: 217864.40
A23: 221 | B23: 02 | C23: 01 | D23: 住房公积金 | E23: 15888.96 | F23: 15888.96 | G23: 0.00 | H23: 0.00 | I23: 0.00 | J23: 0.00 | K23: 0.00
A24: 221 | B24: 02 | C24: 01 | D24: 住房公积金 | E24: 50341.44 | F24: 35547.84 | G24: 0.00 | H24: 0.00 | I24: 0.00 | J24: 0.00 | K24: 14793.60
A25: 221 | B25: 02 | C25: 01 | D25: 住房公积金 | E25: 67736.64 | F25: 67736.64 | G25: 0.00 | H25: 0.00 | I25: 0.00 | J25: 0.00 | K25: 0.00
A26: 221 | B26: 02 | C26: 01 | D26: 住房公积金 | E26: 735793.92 | F26: 91394.88 | G26: 644399.04 | H26: 0.00 | I26: 0.00 | J26: 0.00 | K26: 0.00
A27: 221 | B27: 02 | C27: 01 | D27: 住房公积金 | E27: 261943.76 | F27: 154581.76 | G27: 0.00 | H27: 0.00 | I27: 0.00 | J27: 0.00 | K27: 107362.00
A28: 221 | B28: 02 | C28: 01 | D28: 住房公积金 | E28: 15285.12 | F28: 15285.12 | G28: 0.00 | H28: 0.00 | I28: 0.00 | J28: 0.00 | K28: 0.00

Sheet 部门支出总表(分类)
A2: 部门支出总表分类
A3: 单位临湘市商务粮食局 | Q3: 单位：万元
A4: 功能科目 | E4: 总计 | F4: 基本支出 | J4: 项目支出
A5: 科目编码 | D5: 科目名称 | F5: 合计 | G5: 工资福利支出 | H5: 一般商品和服务支出 | I5: 对个人和家庭的补助 | J5: 合计 | K5: 商品和服务支出 | L5: 对个人和家庭的补助支出 | M5: 基本建设 | N5: 其他资本性支出 | O5: 对企事业单位的补贴 | P5: 其他支出 | Q5: 债务利息及费用支出
A6: 类 | B6: 款 | C6: 项
D7: 合计 | E7: =SUM(E8:E29) -> 27317715.35 | F7: 21890348.19 | G7: 20122008.19 | H7: 1730000.00 | I7: 38340.00 | J7: 5427367.16 | K7: 5427367.16 | L7: 0.00 | M7: 0.00 | N7: 0.00 | O7: 0.00 | P7: 0.00 | Q7: 0.00
A8: 201 | B8: 13 | C8: 99 | D8: 其他商贸事务支出 | E8: 13908790.84 | F8: 10951423.68 | G8: 9841243.68 | H8: 1089000.00 | I8: 21180.00 | J8: 2957367.16 | K8: 2957367.16 | L8: 0.00 | M8: 0.00 | N8: 0.00 | O8: 0.00 | P8: 0.00 | Q8: 0.00
A9: 201 | B9: 13 | C9: 01 | D9: 行政运行（商贸事务） | E9: 6685002.79 | F9: 4225002.79 | G9: 3771902.79 | H9: 448000.00 | I9: 5100.00 | J9: 2460000.00 | K9: 2460000.00 | L9: 0.00 | M9: 0.00 | N9: 0.00 | O9: 0.00 | P9: 0.00 | Q9: 0.00
A10: 201 | B10: 13 | C10: 99 | D10: 其他商贸事务支出 | E10: 10000.00 | F10: 0.00 | G10: 0.00 | H10: 0.00 | I10: 0.00 | J10: 10000.00 | K10: 10000.00 | L10: 0.00 | M10: 0.00 | N10: 0.00 | O10: 0.00 | P10: 0.00 | Q10: 0.00
A11: 201 | B11: 13 | C11: 50 | D11: 事业运行（商贸事务） | E11: 996977.56 | F11: 996977.56 | G11: 905977.56 | H11: 91000.00 | I11: 0.00 | J11: 0.00 | K11: 0.00 | L11: 0.00 | M11: 0.00 | N11: 0.00 | O11: 0.00 | P11: 0.00 | Q11: 0.00
A12: 201 | B12: 13 | C12: 50 | D12: 事业运行（商贸事务） | E12: 230478.48 | F12: 230478.48 | G12: 204438.48 | H12: 18000.00 | I12: 8040.00 | J12: 0.00 | K12: 0.00 | L12: 0.00 | M12: 0.00 | N12: 0.00 | O12: 0.00 | P12: 0.00 | Q12: 0.00
A13: 201 | B13: 13 | C13: 50 | D13: 事业运行（商贸事务） | E13: 235534.84 | F13: 235534.84 | G13: 212514.84 | H13: 19000.00 | I13: 4020.00 | J13: 0.00 | K13: 0.00 | L13: 0.00 | M13: 0.00 | N13: 0.00 | O13: 0.00 | P13: 0.00 | Q13: 0.00
A14: 208 | B14: 05 | C14: 05 | D14: 机关事业单位基本养老保险缴费支出 | E14: 38212.80 | F14: 38212.80 | G14: 38212.80 | H14: 0.00 | I14: 0.00 | J14: 0.00 | K14: 0.00 | L14: 0.00 | M14: 0.00 | N14: 0.00 | O14: 0.00 | P14: 0.00 | Q14: 0.00
A15: 208 | B15: 05 | C15: 06 | D15: 机关事业单位职业年金缴费支出 | E15: 644399.04 | F15: 644399.04 | G15: 644399.04 | H15: 0.00 | I15: 0.00 | J15: 0.00 | K15: 0.00 | L15: 0.00 | M15: 0.00 | N15: 0.00 | O15: 0.00 | P15: 0.00 | Q15: 0.00
A16: 208 | B16: 05 | C16: 05 | D16: 机关事业单位基本养老保险缴费支出 | E16: 39722.40 | F16: 39722.40 | G16: 39722.40 | H16: 0.00 | I16: 0.00 | J16: 0.00 | K16: 0.00 | L16: 0.00 | M16: 0.00 | N16: 0.00 | O16: 0.00 | P16: 0.00 | Q16: 0.00
A17: 208 | B17: 05 | C17: 05 | D17: 机关事业单位基本养老保险缴费支出 | E17: 169341.60 | F17: 169341.60 | G17: 169341.60 | H17: 0.00 | I17: 0.00 | J17: 0.00 | K17: 0.00 | L17: 0.00 | M17: 0.00 | N17: 0.00 | O17: 0.00 | P17: 0.00 | Q17: 0.00
A18: 208 | B18: 05 | C18: 05 | D18: 机关事业单位基本养老保险缴费支出 | E18: 386454.40 | F18: 386454.40 | G18: 386454.40 | H18: 0.00 | I18: 0.00 | J18: 0.00 | K18: 0.00 | L18: 0.00 | M18: 0.00 | N18: 0.00 | O18: 0.00 | P18: 0.00 | Q18: 0.00
A19: 208 | B19: 05 | C19: 06 | D19: 机关事业单位职业年金缴费支出 | E19: 107362.00 | F19: 107362.00 | G19: 107362.00 | H19: 0.00 | I19: 0.00 | J19: 0.00 | K19: 0.00 | L19: 0.00 | M19: 0.00 | N19: 0.00 | O19: 0.00 | P19: 0.00 | Q19: 0.00
A20: 208 | B20: 05 | C20: 06 | D20: 机关事业单位职业年金缴费支出 | E20: 14793.60 | F20: 14793.60 | G20: 14793.60 | H20: 0.00 | I20: 0.00 | J20: 0.00 | K20: 0.00 | L20: 0.00 | M20: 0.00 | N20: 0.00 | O20: 0.00 | P20: 0.00 | Q20: 0.00
A21: 208 | B21: 05 | C21: 05 | D21: 机关事业单位基本养老保险缴费支出 | E21: 125853.60 | F21: 125853.60 | G21: 125853.60 | H21: 0.00 | I21: 0.00 | J21: 0.00 | K21: 0.00 | L21: 0.00 | M21: 0.00 | N21: 0.00 | O21: 0.00 | P21: 0.00 | Q21: 0.00
A22: 208 | B22: 05 | C22: 05 | D22: 机关事业单位基本养老保险缴费支出 | E22: 1839484.80 | F22: 1839484.80 | G22: 1839484.80 | H22: 0.00 | I22: 0.00 | J22: 0.00 | K22: 0.00 | L22: 0.00 | M22: 0.00 | N22: 0.00 | O22: 0.00 | P22: 0.00 | Q22: 0.00
A23: 216 | B23: 02 | C23: 02 | D23: 一般行政管理事务（商业流通事务） | E23: 738316.76 | F23: 738316.76 | G23: 673316.76 | H23: 65000.00 | I23: 0.00 | J23: 0.00 | K23: 0.00 | L23: 0.00 | M23: 0.00 | N23: 0.00 | O23: 0.00 | P23: 0.00 | Q23: 0.00
A24: 221 | B24: 02 | C24: 01 | D24: 住房公积金 | E24: 15285.12 | F24: 15285.12 | G24: 15285.12 | H24: 0.00 | I24: 0.00 | J24: 0.00 | K24: 0.00 | L24: 0.00 | M24: 0.00 | N24: 0.00 | O24: 0.00 | P24: 0.00 | Q24: 0.00
A25: 221 | B25: 02 | C25: 01 | D25: 住房公积金 | E25: 15888.96 | F25: 15888.96 | G25: 15888.96 | H25: 0.00 | I25: 0.00 | J25: 0.00 | K25: 0.00 | L25: 0.00 | M25: 0.00 | N25: 0.00 | O25: 0.00 | P25: 0.00 | Q25: 0.00
A26: 221 | B26: 02 | C26: 01 | D26: 住房公积金 | E26: 261943.76 | F26: 261943.76 | G26: 261943.76 | H26: 0.00 | I26: 0.00 | J26: 0.00 | K26: 0.00 | L26: 0.00 | M26: 0.00 | N26: 0.00 | O26: 0.00 | P26: 0.00 | Q26: 0.00
A27: 221 | B27: 02 | C27: 01 | D27: 住房公积金 | E27: 67736.64 | F27: 67736.64 | G27: 67736.64 | H27: 0.00 | I27: 0.00 | J27: 0.00 | K27: 0.00 | L27: 0.00 | M27: 0.00 | N27: 0.00 | O27: 0.00 | P27: 0.00 | Q27: 0.00
A28: 221 | B28: 02 | C28: 01 | D28: 住房公积金 | E28: 50341.44 | F28: 50341.44 | G28: 50341.44 | H28: 0.00 | I28: 0.00 | J28: 0.00 | K28: 0.00 | L28: 0.00 | M28: 0.00 | N28: 0.00 | O28: 0.00 | P28: 0.00 | Q28: 0.00
A29: 221 | B29: 02 | C29: 01 | D29: 住房公积金 | E29: 735793.92 | F29: 735793.92 | G29: 735793.92 | H29: 0.00 | I29: 0.00 | J29: 0.00 | K29: 0.00 | L29: 0.00 | M29: 0.00 | N29: 0.00 | O29: 0.00 | P29: 0.00 | Q29: 0.00

Sheet 基本-工资福利
A2: 基本支出预算明细表-工资福利
A3: 单位临湘市商务粮食局
A4: 功能科目 | D4: 科目名称 | E4: 总计 | F4: 工资性支出 | K4: 社会保障缴费 | S4: 伙食补贴支出 | U4: 其他工资福利支出
A5: 类 | B5: 款 | C5: 项 | F5: 合计 | G5: 基本工资 | H5: 津贴补贴 | I5: 奖金 | J5: 绩效工资 | K5: 合计 | L5: 基本医疗保险 | M5: 医疗费 | N5: 其他社会保障缴费 | O5: 机关事业单位基本养老保险缴费 | P5: 职业年金 | Q5: 住房公积金 | R5: 公务员医疗补助缴费 | S5: 合计 | T5: 伙食补助费
D6: 合计 | E6: =E7+E12+E16+E21+E26+E30 -> 20,122,008.19 | F6: 14,337,373.00 | G6: 8,556,888.00 | H6: 722,400.00 | I6: 102,301.00 | J6: 4,955,784.00 | K6: 5,784,635.19 | L6: 1,003,616.11 | M6: 0.00 | N6: 0.00 | O6: 2,867,474.60 | P6: 766,554.64 | Q6: 1,146,989.84 | R6: 0.00 | S6: 0.00 | T6: 0.00 | U6: 0.00
E7: =SUM(E8:E11) -> 4,527,662.95 | F7: 3,274,297.00 | G7: 2,024,916.00 | H7: 722,400.00 | I7: 102,301.00 | J7: 424,680.00 | K7: 1,253,365.95 | L7: 229,200.79 | M7: 0.00 | N7: 0.00 | O7: 654,859.40 | P7: 107,362.00 | Q7: 261,943.76 | R7: 0.00 | S7: 0.00 | T7: 0.00 | U7: 0.00
A8: 201 | B8: 13 | C8: 01 | D8: 行政运行（商贸事务） | E8: 3,771,902.79 | F8: 3,274,297.00 | G8: 2,024,916.00 | H8: 722,400.00 | I8: 102,301.00 | J8: 424,680.00 | K8: 497,605.79 | L8: 229,200.79 | M8: 0.00 | N8: 0.00 | O8: 268,405.00 | P8: 0.00 | Q8: 0.00 | R8: 0.00 | S8: 0.00 | T8: 0.00 | U8: 0.00
A9: 208 | B9: 05 | C9: 06 | D9: 机关事业单位职业年金缴费支出 | E9: 107,362.00 | F9: 0.00 | G9: 0.00 | H9: 0.00 | I9: 0.00 | J9: 0.00 | K9: 107,362.00 | L9: 0.00 | M9: 0.00 | N9: 0.00 | O9: 0.00 | P9: 107,362.00 | Q9: 0.00 | R9: 0.00 | S9: 0.00 | T9: 0.00 | U9: 0.00
A10: 208 | B10: 05 | C10: 05 | D10: 机关事业单位基本养老保险缴费支出 | E10: 386,454.40 | F10: 0.00 | G10: 0.00 | H10: 0.00 | I10: 0.00 | J10: 0.00 | K10: 386,454.40 | L10: 0.00 | M10: 0.00 | N10: 0.00 | O10: 386,454.40 | P10: 0.00 | Q10: 0.00 | R10: 0.00 | S10: 0.00 | T10: 0.00 | U10: 0.00
A11: 221 | B11: 02 | C11: 01 | D11: 住房公积金 | E11: 261,943.76 | F11: 0.00 | G11: 0.00 | H11: 0.00 | I11: 0.00 | J11: 0.00 | K11: 261,943.76 | L11: 0.00 | M11: 0.00 | N11: 0.00 | O11: 0.00 | P11: 0.00 | Q11: 261,943.76 | R11: 0.00 | S11: 0.00 | T11: 0.00 | U11: 0.00
E12: =SUM(E13:E15) -> 1,143,055.80 | F12: 846,708.00 | G12: 514,836.00 | H12: 0.00 | I12: 0.00 | J12: 331,872.00 | K12: 296,347.80 | L12: 59,269.56 | M12: 0.00 | N12: 0.00 | O12: 169,341.60 | P12: 0.00 | Q12: 67,736.64 | R12: 0.00 | S12: 0.00 | T12: 0.00 | U12: 0.00
A13: 201 | B13: 13 | C13: 50 | D13: 事业运行（商贸事务） | E13: 905,977.56 | F13: 846,708.00 | G13: 514,836.00 | H13: 0.00 | I13: 0.00 | J13: 331,872.00 | K13: 59,269.56 | L13: 59,269.56 | M13: 0.00 | N13: 0.00 | O13: 0.00 | P13: 0.00 | Q13: 0.00 | R13: 0.00 | S13: 0.00 | T13: 0.00 | U13: 0.00
A14: 208 | B14: 05 | C14: 05 | D14: 机关事业单位基本养老保险缴费支出 | E14: 169,341.60 | F14: 0.00 | G14: 0.00 | H14: 0.00 | I14: 0.00 | J14: 0.00 | K14: 169,341.60 | L14: 0.00 | M14: 0.00 | N14: 0.00 | O14: 169,341.60 | P14: 0.00 | Q14: 0.00 | R14: 0.00 | S14: 0.00 | T14: 0.00 | U14: 0.00
A15: 221 | B15: 02 | C15: 01 | D15: 住房公积金 | E15: 67,736.64 | F15: 0.00 | G15: 0.00 | H15: 0.00 | I15: 0.00 | J15: 0.00 | K15: 67,736.64 | L15: 0.00 | M15: 0.00 | N15: 0.00 | O15: 0.00 | P15: 0.00 | Q15: 67,736.64 | R15: 0.00 | S15: 0.00 | T15: 0.00 | U15: 0.00
E16: =SUM(E17:E20) -> 864,305.40 | F16: 629,268.00 | G16: 406,152.00 | H16: 0.00 | I16: 0.00 | J16: 223,116.00 | K16: 235,037.40 | L16: 44,048.76 | M16: 0.00 | N16: 0.00 | O16: 125,853.60 | P16: 14,793.60 | Q16: 50,341.44 | R16: 0.00 | S16: 0.00 | T16: 0.00 | U16: 0.00
A17: 208 | B17: 05 | C17: 06 | D17: 机关事业单位职业年金缴费支出 | E17: 14,793.60 | F17: 0.00 | G17: 0.00 | H17: 0.00 | I17: 0.00 | J17: 0.00 | K17: 14,793.60 | L17: 0.00 | M17: 0.00 | N17: 0.00 | O17: 0.00 | P17: 14,793.60 | Q17: 0.00 | R17: 0.00 | S17: 0.00 | T17: 0.00 | U17: 0.00
A18: 208 | B18: 05 | C18: 05 | D18: 机关事业单位基本养老保险缴费支出 | E18: 125,853.60 | F18: 0.00 | G18: 0.00 | H18: 0.00 | I18: 0.00 | J18: 0.00 | K18: 125,853.60 | L18: 0.00 | M18: 0.00 | N18: 0.00 | O18: 125,853.60 | P18: 0.00 | Q18: 0.00 | R18: 0.00 | S18: 0.00 | T18: 0.00 | U18: 0.00
A19: 216 | B19: 02 | C19: 02 | D19: 一般行政管理事务（商业流通事务） | E19: 673,316.76 | F19: 629,268.00 | G19: 406,152.00 | H19: 0.00 | I19: 0.00 | J19: 223,116.00 | K19: 44,048.76 | L19: 44,048.76 | M19: 0.00 | N19: 0.00 | O19: 0.00 | P19: 0.00 | Q19: 0.00 | R19: 0.00 | S19: 0.00 | T19: 0.00 | U19: 0.00
A20: 221 | B20: 02 | C20: 01 | D20: 住房公积金 | E20: 50,341.44 | F20: 0.00 | G20: 0.00 | H20: 0.00 | I20: 0.00 | J20: 0.00 | K20: 50,341.44 | L20: 0.00 | M20: 0.00 | N20: 0.00 | O20: 0.00 | P20: 0.00 | Q20: 50,341.44 | R20: 0.00 | S20: 0.00 | T20: 0.00 | U20: 0.00
E21: =SUM(E22:E25) -> 13,060,921.44 | F21: 9,197,424.00 | G21: 5,358,252.00 | H21: 0.00 | I21: 0.00 | J21: 3,839,172.00 | K21: 3,863,497.44 | L21: 643,819.68 | M21: 0.00 | N21: 0.00 | O21: 1,839,484.80 | P21: 644,399.04 | Q21: 735,793.92 | R21: 0.00 | S21: 0.00 | T21: 0.00 | U21: 0.00
A22: 201 | B22: 13 | C22: 99 | D22: 其他商贸事务支出 | E22: 9,841,243.68 | F22: 9,197,424.00 | G22: 5,358,252.00 | H22: 0.00 | I22: 0.00 | J22: 3,839,172.00 | K22: 643,819.68 | L22: 643,819.68 | M22: 0.00 | N22: 0.00 | O22: 0.00 | P22: 0.00 | Q22: 0.00 | R22: 0.00 | S22: 0.00 | T22: 0.00 | U22: 0.00
A23: 208 | B23: 05 | C23: 06 | D23: 机关事业单位职业年金缴费支出 | E23: 644,399.04 | F23: 0.00 | G23: 0.00 | H23: 0.00 | I23: 0.00 | J23: 0.00 | K23: 644,399.04 | L23: 0.00 | M23: 0.00 | N23: 0.00 | O23: 0.00 | P23: 644,399.04 | Q23: 0.00 | R23: 0.00 | S23: 0.00 | T23: 0.00 | U23: 0.00
A24: 208 | B24: 05 | C24: 05 | D24: 机关事业单位基本养老保险缴费支出 | E24: 1,839,484.80 | F24: 0.00 | G24: 0.00 | H24: 0.00 | I24: 0.00 | J24: 0.00 | K24: 1,839,484.80 | L24: 0.00 | M24: 0.00 | N24: 0.00 | O24: 1,839,484.80 | P24: 0.00 | Q24: 0.00 | R24: 0.00 | S24: 0.00 | T24: 0.00 | U24: 0.00
A25: 221 | B25: 02 | C25: 01 | D25: 住房公积金 | E25: 735,793.92 | F25: 0.00 | G25: 0.00 | H25: 0.00 | I25: 0.00 | J25: 0.00 | K25: 735,793.92 | L25: 0.00 | M25: 0.00 | N25: 0.00 | O25: 0.00 | P25: 0.00 | Q25: 735,793.92 | R25: 0.00 | S25: 0.00 | T25: 0.00 | U25: 0.00
E26: =SUM(E27:E29) -> 268,126.20 | F26: 198,612.00 | G26: 128,676.00 | H26: 0.00 | I26: 0.00 | J26: 69,936.00 | K26: 69,514.20 | L26: 13,902.84 | M26: 0.00 | N26: 0.00 | O26: 39,722.40 | P26: 0.00 | Q26: 15,888.96 | R26: 0.00 | S26: 0.00 | T26: 0.00 | U26: 0.00
A27: 201 | B27: 13 | C27: 50 | D27: 事业运行（商贸事务） | E27: 212,514.84 | F27: 198,612.00 | G27: 128,676.00 | H27: 0.00 | I27: 0.00 | J27: 69,936.00 | K27: 13,902.84 | L27: 13,902.84 | M27: 0.00 | N27: 0.00 | O27: 0.00 | P27: 0.00 | Q27: 0.00 | R27: 0.00 | S27: 0.00 | T27: 0.00 | U27: 0.00
A28: 208 | B28: 05 | C28: 05 | D28: 机关事业单位基本养老保险缴费支出 | E28: 39,722.40 | F28: 0.00 | G28: 0.00 | H28: 0.00 | I28: 0.00 | J28: 0.00 | K28: 39,722.40 | L28: 0.00 | M28: 0.00 | N28: 0.00 | O28: 39,722.40 | P28: 0.00 | Q28: 0.00 | R28: 0.00 | S28: 0.00 | T28: 0.00 | U28: 0.00
A29: 221 | B29: 02 | C29: 01 | D29: 住房公积金 | E29: 15,888.96 | F29: 0.00 | G29: 0.00 | H29: 0.00 | I29: 0.00 | J29: 0.00 | K29: 15,888.96 | L29: 0.00 | M29: 0.00 | N29: 0.00 | O29: 0.00 | P29: 0.00 | Q29: 15,888.96 | R29: 0.00 | S29: 0.00 | T29: 0.00 | U29: 0.00
E30: =SUM(E31:E33) -> 257,936.40 | F30: 191,064.00 | G30: 124,056.00 | H30: 0.00 | I30: 0.00 | J30: 67,008.00 | K30: 66,872.40 | L30: 13,374.48 | M30: 0.00 | N30: 0.00 | O30: 38,212.80 | P30: 0.00 | Q30: 15,285.12 | R30: 0.00 | S30: 0.00 | T30: 0.00 | U30: 0.00
A31: 201 | B31: 13 | C31: 50 | D31: 事业运行（商贸事务） | E31: 204,438.48 | F31: 191,064.00 | G31: 124,056.00 | H31: 0.00 | I31: 0.00 | J31: 67,008.00 | K31: 13,374.48 | L31: 13,374.48 | M31: 0.00 | N31: 0.00 | O31: 0.00 | P31: 0.00 | Q31: 0.00 | R31: 0.00 | S31: 0.00 | T31: 0.00 | U31: 0.00
A32: 208 | B32: 05 | C32: 05 | D32: 机关事业单位基本养老保险缴费支出 | E32: 38,212.80 | F32: 0.00 | G32: 0.00 | H32: 0.00 | I32: 0.00 | J32: 0.00 | K32: 38,212.80 | L32: 0.00 | M32: 0.00 | N32: 0.00 | O32: 38,212.80 | P32: 0.00 | Q32: 0.00 | R32: 0.00 | S32: 0.00 | T32: 0.00 | U32: 0.00
A33: 221 | B33: 02 | C33: 01 | D33: 住房公积金 | E33: 15,285.12 | F33: 0.00 | G33: 0.00 | H33: 0.00 | I33: 0.00 | J33: 0.00 | K33: 15,285.12 | L33: 0.00 | M33: 0.00 | N33: 0.00 | O33: 0.00 | P33: 0.00 | Q33: 15,285.12 | R33: 0.00 | S33: 0.00 | T33: 0.00 | U33: 0.00

Sheet 基本-商品和服务支出
A2: 基本支出预算明细表-商品和服务支出
A3: 单位临湘市商务粮食局 | W3: 单位：元
A4: 功能科目 | D4: 科目名称 | E4: 总计 | F4: 办公费 | G4: 日常印刷费 | H4: 水费 | I4: 电费 | J4: 邮电费 | K4: 取暖费 | L4: 物业管理费 | M4: 差旅费 | N4: 日常维修(护)费 | O4: 租赁费 | P4: 会议费 | Q4: 培训费 | R4: 公务接待费 | S4: 劳务费 | T4: 工会经费 | U4: 福利费 | V4: 公务用车运行维护费 | W4: 其他交通费 | X4: 其他一般商品和服务支出
A5: 类 | B5: 款 | C5: 项
D6: 合计 | E6: =SUM(E7:E12) -> 1,730,000.00 | F6: 140,000.00 | G6: 19,400.00 | H6: 132,400.00 | I6: 250,200.00 | J6: 48,000.00 | K6: 0.00 | L6: 0.00 | M6: 87,500.00 | N6: 396,000.00 | O6: 0.00 | P6: 39,000.00 | Q6: 32,140.00 | R6: 229,100.00 | S6: 0.00 | T6: 56,540.00 | U6: 145,920.00 | V6: 28,600.00 | W6: 13,200.00 | X6: 112,000.00
A7: 216 | B7: 02 | C7: 02 | D7: 一般行政管理事务（商业流通事务） | E7: 65,000.00 | F7: 0.00 | G7: 0.00 | H7: 0.00 | I7: 0.00 | J7: 0.00 | K7: 0.00 | L7: 0.00 | M7: 0.00 | N7: 0.00 | O7: 0.00 | P7: 0.00 | Q7: 0.00 | R7: 60,000.00 | S7: 0.00 | T7: 0.00 | U7: 0.00 | V7: 0.00 | W7: 0.00 | X7: 5,000.00
A8: 201 | B8: 13 | C8: 50 | D8: 事业运行（商贸事务） | E8: 19,000.00 | F8: 1,500.00 | G8: 600.00 | H8: 600.00 | I8: 1,050.00 | J8: 1,500.00 | K8: 0.00 | L8: 0.00 | M8: 4,500.00 | N8: 1,500.00 | O8: 0.00 | P8: 1,500.00 | Q8: 810.00 | R8: 3,000.00 | S8: 0.00 | T8: 660.00 | U8: 480.00 | V8: 0.00 | W8: 300.00 | X8: 1,000.00
A9: 201 | B9: 13 | C9: 99 | D9: 其他商贸事务支出 | E9: 1,089,000.00 | F9: 83,000.00 | G9: 5,000.00 | H9: 118,000.00 | I9: 225,000.00 | J9: 12,000.00 | K9: 0.00 | L9: 0.00 | M9: 0.00 | N9: 340,000.00 | O9: 0.00 | P9: 3,000.00 | Q9: 2,700.00 | R9: 67,400.00 | S9: 0.00 | T9: 42,900.00 | U9: 134,400.00 | V9: 28,600.00 | W9: 0.00 | X9: 27,000.00
A10: 201 | B10: 13 | C10: 50 | D10: 事业运行（商贸事务） | E10: 91,000.00 | F10: 7,500.00 | G10: 3,000.00 | H10: 3,000.00 | I10: 5,250.00 | J10: 7,500.00 | K10: 0.00 | L10: 0.00 | M10: 20,000.00 | N10: 7,500.00 | O10: 0.00 | P10: 7,500.00 | Q10: 4,050.00 | R10: 20,700.00 | S10: 0.00 | T10: 1,100.00 | U10: 2,400.00 | V10: 0.00 | W10: 500.00 | X10: 1,000.00
A11: 201 | B11: 13 | C11: 50 | D11: 事业运行（商贸事务） | E11: 18,000.00 | F11: 1,500.00 | G11: 600.00 | H11: 600.00 | I11: 1,050.00 | J11: 1,500.00 | K11: 0.00 | L11: 0.00 | M11: 4,500.00 | N11: 1,500.00 | O11: 0.00 | P11: 1,500.00 | Q11: 810.00 | R11: 3,000.00 | S11: 0.00 | T11: 660.00 | U11: 480.00 | V11: 0.00 | W11: 300.00 | X11: 0.00
A12: 201 | B12: 13 | C12: 01 | D12: 行政运行（商贸事务） | E12: 448,000.00 | F12: 46,500.00 | G12: 10,200.00 | H12: 10,200.00 | I12: 17,850.00 | J12: 25,500.00 | K12: 0.00 | L12: 0.00 | M12: 58,500.00 | N12: 45,500.00 | O12: 0.00 | P12: 25,500.00 | Q12: 23,770.00 | R12: 75,000.00 | S12: 0.00 | T12: 11,220.00 | U12: 8,160.00 | V12: 0.00 | W12: 12,100.00 | X12: 78,000.00

Sheet 基本-个人家庭
A2: 基本支出明细表-对个人和家庭的补助
A3: 单位临湘市商务粮食局 | P3: 单位：元
A4: 功能科目 | D4: 科目名称 | E4: 总计 | F4: 离休费 | G4: 退休费 | H4: 退职(役)费 | I4: 抚恤金 | J4: 生活补助 | K4: 救济费 | L4: 医疗费 | M4: 助学金 | N4: 奖励金 | O4: 生产补贴 | P4: 其他对个人和家庭的补助
A5: 类 | B5: 款 | C5: 项
D6: 合计 | E6: =SUM(E7:E10) -> 38,340.00 | F6: 0.00 | G6: 0.00 | H6: 0.00 | I6: 38,340.00 | J6: 0.00 | K6: 0.00 | L6: 0.00 | M6: 0.00 | N6: 0.00 | O6: 0.00 | P6: 0.00
A7: 201 | B7: 13 | C7: 50 | D7: 事业运行（商贸事务） | E7: 8,040.00 | F7: 0.00 | G7: 0.00 | H7: 0.00 | I7: 8,040.00 | J7: 0.00 | K7: 0.00 | L7: 0.00 | M7: 0.00 | N7: 0.00 | O7: 0.00 | P7: 0.00
A8: 201 | B8: 13 | C8: 99 | D8: 其他商贸事务支出 | E8: 21,180.00 | F8: 0.00 | G8: 0.00 | H8: 0.00 | I8: 21,180.00 | J8: 0.00 | K8: 0.00 | L8: 0.00 | M8: 0.00 | N8: 0.00 | O8: 0.00 | P8: 0.00
A9: 201 | B9: 13 | C9: 50 | D9: 事业运行（商贸事务） | E9: 4,020.00 | F9: 0.00 | G9: 0.00 | H9: 0.00 | I9: 4,020.00 | J9: 0.00 | K9: 0.00 | L9: 0.00 | M9: 0.00 | N9: 0.00 | O9: 0.00 | P9: 0.00
A10: 201 | B10: 13 | C10: 1 | D10: 行政运行（商贸事务） | E10: 5,100.00 | F10: 0.00 | G10: 0.00 | H10: 0.00 | I10: 5,100.00 | J10: 0.00 | K10: 0.00 | L10: 0.00 | M10: 0.00 | N10: 0.00 | O10: 0.00 | P10: 0.00

Sheet 财政拨款收支总表
A1: 2018年部门预算收支总表
A2: 填报单位：临湘市商务粮食局 | G2: 单位：元
A3: 收入 | C3: 支出（功能科目）
A4: 项目 | B4: 本年预算 | C4: 项目 | D4: 合计 | E4: 一般公共预算 | F4: 政府性基金预算 | G4: 国有资本经营预算
A5: 一般预算拨款（补助） | B5: 24996184.00 | C5: 201、一般公共服务支出 | D5: 22066784.51 | E5: 0.00 | F5: 0.00
A6: 经费拨款 | B6: 10796184.00 | C6: 202、外交支出 | D6: 0.00 | E6: 0.00 | F6: 0.00
A7: 纳入预算管理的非税收入拨款 | B7: 14200000.00 | C7: 203、国防支出 | D7: 0.00 | E7: 0.00 | F7: 0.00
A8: 纳入专户管理的非税收入拨款 | B8: 0.00 | C8: 204、公共安全支出 | D8: 0.00 | E8: 0.00 | F8: 0.00
A9: 政府性基金拨款 | B9: 0.00 | C9: 205、教育支出 | D9: 0.00 | E9: 0.00 | F9: 0.00
A10: 事业单位经营收入 | B10: 0.00 | C10: 206、科学技术支出 | D10: 0.00 | E10: 0.00 | F10: 0.00
A11: 上级补助收入 | B11: 0.00 | C11: 207、文化体育与传媒支出 | D11: 0.00 | E11: 0.00 | F11: 0.00
A12: 附属单位上缴收入 | B12: 0.00 | C12: 208、社会保障和就业支出 | D12: 3365624.24 | E12: 0.00 | F12: 0.00
A13: 其他收入 | B13: 2321531.35 | C13: 209、社保基金支出 | D13: 0.00 | E13: 0.00 | F13: 0.00
A14: 上年结转 | B14: 0.00 | C14: 210、医疗卫生与计划生育支出 | D14: 0.00 | E14: 0.00 | F14: 0.00
C15: 211、节能环保支出 | D15: 0.00 | E15: 0.00 | F15: 0.00
C16: 212、城乡社区支出 | D16: 0.00 | E16: 0.00 | F16: 0.00
C17: 213、农林水支出 | D17: 0.00 | E17: 0.00 | F17: 0.00
C18: 214、交通运输支出 | D18: 0.00 | E18: 0.00 | F18: 0.00
C19: 215、资源勘探信息等支出 | D19: 0.00 | E19: 0.00 | F19: 0.00
C20: 216、商业服务业等支出 | D20: 738316.76 | E20: 0.00 | F20: 0.00
C21: 217、金融支出 | D21: 0.00 | E21: 0.00 | F21: 0.00
C22: 219、援助其他地区支出 | D22: 0.00 | E22: 0.00 | F22: 0.00
C23: 220、国土海洋气象等支出 | D23: 0.00 | E23: 0.00 | F23: 0.00
C24: 221、住房保障支出 | D24: 1146989.84 | E24: 0.00 | F24: 0.00
C25: 222、粮油物资储备支出 | D25: 0.00 | E25: 0.00 | F25: 0.00
C26: 223、国有资本经营预算支出 | D26: 0.00 | E26: 0.00 | F26: 0.00
C27: 227、预备费 | D27: 0.00 | E27: 0.00 | F27: 0.00
C28: 229、其他支出 | D28: 0.00 | E28: 0.00 | F28: 0.00
C29: 230、转移性支出 | D29: 0.00 | E29: 0.00 | F29: 0.00
C30: 231、债务还本支出 | D30: 0.00 | E30: 0.00 | F30: 0.00
C31: 232、债务付息支出 | D31: 0.00 | E31: 0.00 | F31: 0.00
C32: 233、债务发行费用支出 | D32: 0.00 | E32: 0.00 | F32: 0.00
A34: 本年收入合计 | B34: 27,317,715.35 | C34: 本年支出合计 | D34: 27,317,715.35 | E34: 0.0000 | F34: 0.00

Sheet 一般预算支出表
A2: 一般公共预算支出情况表
A3: 单位临湘市商务粮食局 | P3: 单位：元
A4: 功能科目 | E4: 总计 | F4: 基本支出 | J4: 项目支出
A5: 科目编码 | D5: 科目名称 | F5: 合计 | G5: 工资福利支出 | H5: 一般商品和服务支出 | I5: 对个人和家庭的补助 | J5: 合计 | K5: 商品和服务支出 | L5: 对个人和家庭的补助支出 | M5: 基本建设 | N5: 其他资本性支出 | O5: 对企事业单位的补贴 | P5: 其他支出 | Q5: 债务利息及费用支出
A6: 类 | B6: 款 | C6: 项
D7: 合计 | E7: =SUM(E8:E27) -> 24,996,184.00 | F7: 19,568,816.84 | G7: 18,038,476.84 | H7: 1,492,000.00 | I7: 38,340.00 | J7: 5,427,367.16 | K7: 5,427,367.16 | L7: 0.00 | M7: 0.00 | N7: 0.00 | O7: 0.00 | P7: 0.00 | Q7: 0.00
A8: 201 | B8: 13 | C8: 99 | D8: 其他商贸事务支出 | E8: 13,908,790.84 | F8: 10,951,423.68 | G8: 9,841,243.68 | H8: 1,089,000.00 | I8: 21,180.00 | J8: 2,957,367.16 | K8: 2,957,367.16 | L8: 0.00 | M8: 0.00 | N8: 0.00 | O8: 0.00 | P8: 0.00 | Q8: 0.00
A9: 201 | B9: 13 | C9: 50 | D9: 事业运行（商贸事务） | E9: 216,534.84 | F9: 216,534.84 | G9: 212,514.84 | H9: 0.00 | I9: 4,020.00 | J9: 0.00 | K9: 0.00 | L9: 0.00 | M9: 0.00 | N9: 0.00 | O9: 0.00 | P9: 0.00 | Q9: 0.00
A10: 201 | B10: 13 | C10: 50 | D10: 事业运行（商贸事务） | E10: 996,977.56 | F10: 996,977.56 | G10: 905,977.56 | H10: 91,000.00 | I10: 0.00 | J10: 0.00 | K10: 0.00 | L10: 0.00 | M10: 0.00 | N10: 0.00 | O10: 0.00 | P10: 0.00 | Q10: 0.00
A11: 201 | B11: 13 | C11: 01 | D11: 行政运行（商贸事务） | E11: 4,899,631.04 | F11: 2,439,631.04 | G11: 2,167,531.04 | H11: 267,000.00 | I11: 5,100.00 | J11: 2,460,000.00 | K11: 2,460,000.00 | L11: 0.00 | M11: 0.00 | N11: 0.00 | O11: 0.00 | P11: 0.00 | Q11: 0.00
A12: 201 | B12: 13 | C12: 99 | D12: 其他商贸事务支出 | E12: 10,000.00 | F12: 0.00 | G12: 0.00 | H12: 0.00 | I12: 0.00 | J12: 10,000.00 | K12: 10,000.00 | L12: 0.00 | M12: 0.00 | N12: 0.00 | O12: 0.00 | P12: 0.00 | Q12: 0.00
A13: 201 | B13: 13 | C13: 50 | D13: 事业运行（商贸事务） | E13: 212,478.48 | F13: 212,478.48 | G13: 204,438.48 | H13: 0.00 | I13: 8,040.00 | J13: 0.00 | K13: 0.00 | L13: 0.00 | M13: 0.00 | N13: 0.00 | O13: 0.00 | P13: 0.00 | Q13: 0.00
A14: 208 | B14: 05 | C14: 05 | D14: 机关事业单位基本养老保险缴费支出 | E14: 386,454.40 | F14: 386,454.40 | G14: 386,454.40 | H14: 0.00 | I14: 0.00 | J14: 0.00 | K14: 0.00 | L14: 0.00 | M14: 0.00 | N14: 0.00 | O14: 0.00 | P14: 0.00 | Q14: 0.00
A15: 208 | B15: 05 | C15: 05 | D15: 机关事业单位基本养老保险缴费支出 | E15: 38,212.80 | F15: 38,212.80 | G15: 38,212.80 | H15: 0.00 | I15: 0.00 | J15: 0.00 | K15: 0.00 | L15: 0.00 | M15: 0.00 | N15: 0.00 | O15: 0.00 | P15: 0.00 | Q15: 0.00
A16: 208 | B16: 05 | C16: 05 | D16: 机关事业单位基本养老保险缴费支出 | E16: 39,722.40 | F16: 39,722.40 | G16: 39,722.40 | H16: 0.00 | I16: 0.00 | J16: 0.00 | K16: 0.00 | L16: 0.00 | M16: 0.00 | N16: 0.00 | O16: 0.00 | P16: 0.00 | Q16: 0.00
A17: 208 | B17: 05 | C17: 06 | D17: 机关事业单位职业年金缴费支出 | E17: 644,399.04 | F17: 644,399.04 | G17: 644,399.04 | H17: 0.00 | I17: 0.00 | J17: 0.00 | K17: 0.00 | L17: 0.00 | M17: 0.00 | N17: 0.00 | O17: 0.00 | P17: 0.00 | Q17: 0.00
A18: 208 | B18: 05 | C18: 05 | D18: 机关事业单位基本养老保险缴费支出 | E18: 1,839,484.80 | F18: 1,839,484.80 | G18: 1,839,484.80 | H18: 0.00 | I18: 0.00 | J18: 0.00 | K18: 0.00 | L18: 0.00 | M18: 0.00 | N18: 0.00 | O18: 0.00 | P18: 0.00 | Q18: 0.00
A19: 208 | B19: 05 | C19: 05 | D19: 机关事业单位基本养老保险缴费支出 | E19: 169,341.60 | F19: 169,341.60 | G19: 169,341.60 | H19: 0.00 | I19: 0.00 | J19: 0.00 | K19: 0.00 | L19: 0.00 | M19: 0.00 | N19: 0.00 | O19: 0.00 | P19: 0.00 | Q19: 0.00
A20: 208 | B20: 05 | C20: 05 | D20: 机关事业单位基本养老保险缴费支出 | E20: 88,869.60 | F20: 88,869.60 | G20: 88,869.60 | H20: 0.00 | I20: 0.00 | J20: 0.00 | K20: 0.00 | L20: 0.00 | M20: 0.00 | N20: 0.00 | O20: 0.00 | P20: 0.00 | Q20: 0.00
A21: 216 | B21: 02 | C21: 02 | D21: 一般行政管理事务（商业流通事务） | E21: 520,452.36 | F21: 520,452.36 | G21: 475,452.36 | H21: 45,000.00 | I21: 0.00 | J21: 0.00 | K21: 0.00 | L21: 0.00 | M21: 0.00 | N21: 0.00 | O21: 0.00 | P21: 0.00 | Q21: 0.00
A22: 221 | B22: 02 | C22: 01 | D22: 住房公积金 | E22: 735,793.92 | F22: 735,793.92 | G22: 735,793.92 | H22: 0.00 | I22: 0.00 | J22: 0.00 | K22: 0.00 | L22: 0.00 | M22: 0.00 | N22: 0.00 | O22: 0.00 | P22: 0.00 | Q22: 0.00
A23: 221 | B23: 02 | C23: 01 | D23: 住房公积金 | E23: 15,888.96 | F23: 15,888.96 | G23: 15,888.96 | H23: 0.00 | I23: 0.00 | J23: 0.00 | K23: 0.00 | L23: 0.00 | M23: 0.00 | N23: 0.00 | O23: 0.00 | P23: 0.00 | Q23: 0.00
A24: 221 | B24: 02 | C24: 01 | D24: 住房公积金 | E24: 35,547.84 | F24: 35,547.84 | G24: 35,547.84 | H24: 0.00 | I24: 0.00 | J24: 0.00 | K24: 0.00 | L24: 0.00 | M24: 0.00 | N24: 0.00 | O24: 0.00 | P24: 0.00 | Q24: 0.00
A25: 221 | B25: 02 | C25: 01 | D25: 住房公积金 | E25: 67,736.64 | F25: 67,736.64 | G25: 67,736.64 | H25: 0.00 | I25: 0.00 | J25: 0.00 | K25: 0.00 | L25: 0.00 | M25: 0.00 | N25: 0.00 | O25: 0.00 | P25: 0.00 | Q25: 0.00
A26: 221 | B26: 02 | C26: 01 | D26: 住房公积金 | E26: 15,285.12 | F26: 15,285.12 | G26: 15,285.12 | H26: 0.00 | I26: 0.00 | J26: 0.00 | K26: 0.00 | L26: 0.00 | M26: 0.00 | N26: 0.00 | O26: 0.00 | P26: 0.00 | Q26: 0.00
A27: 221 | B27: 02 | C27: 01 | D27: 住房公积金 | E27: 154,581.76 | F27: 154,581.76 | G27: 154,581.76 | H27: 0.00 | I27: 0.00 | J27: 0.00 | K27: 0.00 | L27: 0.00 | M27: 0.00 | N27: 0.00 | O27: 0.00 | P27: 0.00 | Q27: 0.00

Sheet 一般预算基本支出表
A2: 一般公共预算基本支出情况表
A3: 单位临湘市商务粮食局 | I3: 单位：元
A4: 功能科目 | E4: 总计 | F4: 基本支出
A5: 科目编码 | D5: 科目名称 | F5: 合计 | G5: 工资福利支出 | H5: 一般商品和服务支出 | I5: 对个人和家庭的补助
A6: 类 | B6: 款 | C6: 项
D7: 合计 | E7: =SUM(E8:E26) -> 19,568,816.84 | F7: =SUM(F8:F26) -> 19,568,816.84 | G7: =SUM(G8:G26) -> 18,038,476.84 | H7: =SUM(H8:H26) -> 1,492,000.00 | I7: =SUM(I8:I26) -> 38,340.00
A8: 201 | B8: 13 | C8: 50 | D8: 事业运行（商贸事务） | E8: 996,977.56 | F8: 996,977.56 | G8: 905,977.56 | H8: 91,000.00 | I8: 0.00
A9: 201 | B9: 13 | C9: 50 | D9: 事业运行（商贸事务） | E9: 212,478.48 | F9: 212,478.48 | G9: 204,438.48 | H9: 0.00 | I9: 8,040.00
A10: 201 | B10: 13 | C10: 99 | D10: 其他商贸事务支出 | E10: 10,951,423.68 | F10: 10,951,423.68 | G10: 9,841,243.68 | H10: 1,089,000.00 | I10: 21,180.00
A11: 201 | B11: 13 | C11: 01 | D11: 行政运行（商贸事务） | E11: 2,439,631.04 | F11: 2,439,631.04 | G11: 2,167,531.04 | H11: 267,000.00 | I11: 5,100.00
A12: 201 | B12: 13 | C12: 50 | D12: 事业运行（商贸事务） | E12: 216,534.84 | F12: 216,534.84 | G12: 212,514.84 | H12: 0.00 | I12: 4,020.00
A13: 208 | B13: 05 | C13: 05 | D13: 机关事业单位基本养老保险缴费支出 | E13: 169,341.60 | F13: 169,341.60 | G13: 169,341.60 | H13: 0.00 | I13: 0.00
A14: 208 | B14: 05 | C14: 05 | D14: 机关事业单位基本养老保险缴费支出 | E14: 38,212.80 | F14: 38,212.80 | G14: 38,212.80 | H14: 0.00 | I14: 0.00
A15: 208 | B15: 05 | C15: 05 | D15: 机关事业单位基本养老保险缴费支出 | E15: 39,722.40 | F15: 39,722.40 | G15: 39,722.40 | H15: 0.00 | I15: 0.00
A16: 208 | B16: 05 | C16: 05 | D16: 机关事业单位基本养老保险缴费支出 | E16: 1,839,484.80 | F16: 1,839,484.80 | G16: 1,839,484.80 | H16: 0.00 | I16: 0.00
A17: 208 | B17: 05 | C17: 06 | D17: 机关事业单位职业年金缴费支出 | E17: 644,399.04 | F17: 644,399.04 | G17: 644,399.04 | H17: 0.00 | I17: 0.00
A18: 208 | B18: 05 | C18: 05 | D18: 机关事业单位基本养老保险缴费支出 | E18: 88,869.60 | F18: 88,869.60 | G18: 88,869.60 | H18: 0.00 | I18: 0.00
A19: 208 | B19: 05 | C19: 05 | D19: 机关事业单位基本养老保险缴费支出 | E19: 386,454.40 | F19: 386,454.40 | G19: 386,454.40 | H19: 0.00 | I19: 0.00
A20: 216 | B20: 02 | C20: 02 | D20: 一般行政管理事务（商业流通事务） | E20: 520,452.36 | F20: 520,452.36 | G20: 475,452.36 | H20: 45,000.00 | I20: 0.00
A21: 221 | B21: 02 | C21: 01 | D21: 住房公积金 | E21: 15,285.12 | F21: 15,285.12 | G21: 15,285.12 | H21: 0.00 | I21: 0.00
A22: 221 | B22: 02 | C22: 01 | D22: 住房公积金 | E22: 15,888.96 | F22: 15,888.96 | G22: 15,888.96 | H22: 0.00 | I22: 0.00
A23: 221 | B23: 02 | C23: 01 | D23: 住房公积金 | E23: 735,793.92 | F23: 735,793.92 | G23: 735,793.92 | H23: 0.00 | I23: 0.00
A24: 221 | B24: 02 | C24: 01 | D24: 住房公积金 | E24: 35,547.84 | F24: 35,547.84 | G24: 35,547.84 | H24: 0.00 | I24: 0.00
A25: 221 | B25: 02 | C25: 01 | D25: 住房公积金 | E25: 67,736.64 | F25: 67,736.64 | G25: 67,736.64 | H25: 0.00 | I25: 0.00
A26: 221 | B26: 02 | C26: 01 | D26: 住房公积金 | E26: 154,581.76 | F26: 154,581.76 | G26: 154,581.76 | H26: 0.00 | I26: 0.00

Sheet 一般-工资福利
A2: 一般公共预算基本支出预算明细表-工资福利支出
A3: 单位临湘市商务粮食局 | U3: 单位：元
A4: 功能科目 | D4: 科目名称 | E4: 总计 | F4: 工资性支出 | K4: 社会保障缴费 | S4: 伙食补贴支出 | U4: 其他工资福利支出
A5: 类 | B5: 款 | C5: 项 | F5: 合计 | G5: 基本工资 | H5: 津贴补贴 | I5: 奖金 | J5: 绩效工资 | K5: 合计 | L5: 基本医疗保险 | M5: 公务员医疗补助缴费 | N5: 其他社会保障缴费 | O5: 机关事业单位基本养老保险缴费 | P5: 职业年金 | Q5: 住房公积金 | R5: 医疗费 | S5: 合计 | T5: 伙食补助费
D6: 合计 | E6: =SUM(E7:E25) -> 18,038,476.84 | F6: 12,910,428.00 | G6: 7,671,892.00 | H6: 657,660.00 | I6: 92,984.00 | J6: 4,487,892.00 | K6: 5,128,048.84 | L6: 896,729.96 | M6: 0.00 | N6: 0.00 | O6: 2,562,085.60 | P6: 644,399.04 | Q6: 1,024,834.24 | R6: 0.00 | S6: 0.00 | T6: 0.00 | U6: 0.00
A7: 201 | B7: 13 | C7: 50 | D7: 事业运行（商贸事务） | E7: 212,514.84 | F7: 198,612.00 | G7: 128,676.00 | H7: 0.00 | I7: 0.00 | J7: 69,936.00 | K7: 13,902.84 | L7: 13,902.84 | M7: 0.00 | N7: 0.00 | O7: 0.00 | P7: 0.00 | Q7: 0.00 | R7: 0.00 | S7: 0.00 | T7: 0.00 | U7: 0.00
A8: 201 | B8: 13 | C8: 50 | D8: 事业运行（商贸事务） | E8: 905,977.56 | F8: 846,708.00 | G8: 514,836.00 | H8: 0.00 | I8: 0.00 | J8: 331,872.00 | K8: 59,269.56 | L8: 59,269.56 | M8: 0.00 | N8: 0.00 | O8: 0.00 | P8: 0.00 | Q8: 0.00 | R8: 0.00 | S8: 0.00 | T8: 0.00 | U8: 0.00
A9: 201 | B9: 13 | C9: 50 | D9: 事业运行（商贸事务） | E9: 204,438.48 | F9: 191,064.00 | G9: 124,056.00 | H9: 0.00 | I9: 0.00 | J9: 67,008.00 | K9: 13,374.48 | L9: 13,374.48 | M9: 0.00 | N9: 0.00 | O9: 0.00 | P9: 0.00 | Q9: 0.00 | R9: 0.00 | S9: 0.00 | T9: 0.00 | U9: 0.00
A10: 201 | B10: 13 | C10: 1 | D10: 行政运行（商贸事务） | E10: 2,167,531.04 | F10: 2,032,272.00 | G10: 1,259,500.00 | H10: 657,660.00 | I10: 92,984.00 | J10: 22,128.00 | K10: 135,259.04 | L10: 135,259.04 | M10: 0.00 | N10: 0.00 | O10: 0.00 | P10: 0.00 | Q10: 0.00 | R10: 0.00 | S10: 0.00 | T10: 0.00 | U10: 0.00
A11: 201 | B11: 13 | C11: 99 | D11: 其他商贸事务支出 | E11: 9,841,243.68 | F11: 9,197,424.00 | G11: 5,358,252.00 | H11: 0.00 | I11: 0.00 | J11: 3,839,172.00 | K11: 643,819.68 | L11: 643,819.68 | M11: 0.00 | N11: 0.00 | O11: 0.00 | P11: 0.00 | Q11: 0.00 | R11: 0.00 | S11: 0.00 | T11: 0.00 | U11: 0.00
A12: 208 | B12: 5 | C12: 5 | D12: 机关事业单位基本养老保险缴费支出 | E12: 39,722.40 | F12: 0.00 | G12: 0.00 | H12: 0.00 | I12: 0.00 | J12: 0.00 | K12: 39,722.40 | L12: 0.00 | M12: 0.00 | N12: 0.00 | O12: 39,722.40 | P12: 0.00 | Q12: 0.00 | R12: 0.00 | S12: 0.00 | T12: 0.00 | U12: 0.00
A13: 208 | B13: 5 | C13: 6 | D13: 机关事业单位职业年金缴费支出 | E13: 644,399.04 | F13: 0.00 | G13: 0.00 | H13: 0.00 | I13: 0.00 | J13: 0.00 | K13: 644,399.04 | L13: 0.00 | M13: 0.00 | N13: 0.00 | O13: 0.00 | P13: 644,399.04 | Q13: 0.00 | R13: 0.00 | S13: 0.00 | T13: 0.00 | U13: 0.00
A14: 208 | B14: 5 | C14: 5 | D14: 机关事业单位基本养老保险缴费支出 | E14: 88,869.60 | F14: 0.00 | G14: 0.00 | H14: 0.00 | I14: 0.00 | J14: 0.00 | K14: 88,869.60 | L14: 0.00 | M14: 0.00 | N14: 0.00 | O14: 88,869.60 | P14: 0.00 | Q14: 0.00 | R14: 0.00 | S14: 0.00 | T14: 0.00 | U14: 0.00
A15: 208 | B15: 5 | C15: 5 | D15: 机关事业单位基本养老保险缴费支出 | E15: 1,839,484.80 | F15: 0.00 | G15: 0.00 | H15: 0.00 | I15: 0.00 | J15: 0.00 | K15: 1,839,484.80 | L15: 0.00 | M15: 0.00 | N15: 0.00 | O15: 1,839,484.80 | P15: 0.00 | Q15: 0.00 | R15: 0.00 | S15: 0.00 | T15: 0.00 | U15: 0.00
A16: 208 | B16: 5 | C16: 5 | D16: 机关事业单位基本养老保险缴费支出 | E16: 386,454.40 | F16: 0.00 | G16: 0.00 | H16: 0.00 | I16: 0.00 | J16: 0.00 | K16: 386,454.40 | L16: 0.00 | M16: 0.00 | N16: 0.00 | O16: 386,454.40 | P16: 0.00 | Q16: 0.00 | R16: 0.00 | S16: 0.00 | T16: 0.00 | U16: 0.00
A17: 208 | B17: 5 | C17: 5 | D17: 机关事业单位基本养老保险缴费支出 | E17: 38,212.80 | F17: 0.00 | G17: 0.00 | H17: 0.00 | I17: 0.00 | J17: 0.00 | K17: 38,212.80 | L17: 0.00 | M17: 0.00 | N17: 0.00 | O17: 38,212.80 | P17: 0.00 | Q17: 0.00 | R17: 0.00 | S17: 0.00 | T17: 0.00 | U17: 0.00
A18: 208 | B18: 5 | C18: 5 | D18: 机关事业单位基本养老保险缴费支出 | E18: 169,341.60 | F18: 0.00 | G18: 0.00 | H18: 0.00 | I18: 0.00 | J18: 0.00 | K18: 169,341.60 | L18: 0.00 | M18: 0.00 | N18: 0.00 | O18: 169,341.60 | P18: 0.00 | Q18: 0.00 | R18: 0.00 | S18: 0.00 | T18: 0.00 | U18: 0.00
A19: 216 | B19: 2 | C19: 2 | D19: 一般行政管理事务（商业流通事务） | E19: 475,452.36 | F19: 444,348.00 | G19: 286,572.00 | H19: 0.00 | I19: 0.00 | J19: 157,776.00 | K19: 31,104.36 | L19: 31,104.36 | M19: 0.00 | N19: 0.00 | O19: 0.00 | P19: 0.00 | Q19: 0.00 | R19: 0.00 | S19: 0.00 | T19: 0.00 | U19: 0.00
A20: 221 | B20: 2 | C20: 1 | D20: 住房公积金 | E20: 15,285.12 | F20: 0.00 | G20: 0.00 | H20: 0.00 | I20: 0.00 | J20: 0.00 | K20: 15,285.12 | L20: 0.00 | M20: 0.00 | N20: 0.00 | O20: 0.00 | P20: 0.00 | Q20: 15,285.12 | R20: 0.00 | S20: 0.00 | T20: 0.00 | U20: 0.00
A21: 221 | B21: 2 | C21: 1 | D21: 住房公积金 | E21: 15,888.96 | F21: 0.00 | G21: 0.00 | H21: 0.00 | I21: 0.00 | J21: 0.00 | K21: 15,888.96 | L21: 0.00 | M21: 0.00 | N21: 0.00 | O21: 0.00 | P21: 0.00 | Q21: 15,888.96 | R21: 0.00 | S21: 0.00 | T21: 0.00 | U21: 0.00
A22: 221 | B22: 2 | C22: 1 | D22: 住房公积金 | E22: 735,793.92 | F22: 0.00 | G22: 0.00 | H22: 0.00 | I22: 0.00 | J22: 0.00 | K22: 735,793.92 | L22: 0.00 | M22: 0.00 | N22: 0.00 | O22: 0.00 | P22: 0.00 | Q22: 735,793.92 | R22: 0.00 | S22: 0.00 | T22: 0.00 | U22: 0.00
A23: 221 | B23: 2 | C23: 1 | D23: 住房公积金 | E23: 35,547.84 | F23: 0.00 | G23: 0.00 | H23: 0.00 | I23: 0.00 | J23: 0.00 | K23: 35,547.84 | L23: 0.00 | M23: 0.00 | N23: 0.00 | O23: 0.00 | P23: 0.00 | Q23: 35,547.84 | R23: 0.00 | S23: 0.00 | T23: 0.00 | U23: 0.00
A24: 221 | B24: 2 | C24: 1 | D24: 住房公积金 | E24: 67,736.64 | F24: 0.00 | G24: 0.00 | H24: 0.00 | I24: 0.00 | J24: 0.00 | K24: 67,736.64 | L24: 0.00 | M24: 0.00 | N24: 0.00 | O24: 0.00 | P24: 0.00 | Q24: 67,736.64 | R24: 0.00 | S24: 0.00 | T24: 0.00 | U24: 0.00
A25: 221 | B25: 2 | C25: 1 | D25: 住房公积金 | E25: 154,581.76 | F25: 0.00 | G25: 0.00 | H25: 0.00 | I25: 0.00 | J25: 0.00 | K25: 154,581.76 | L25: 0.00 | M25: 0.00 | N25: 0.00 | O25: 0.00 | P25: 0.00 | Q25: 154,581.76 | R25: 0.00 | S25: 0.00 | T25: 0.00 | U25: 0.00

Sheet 一般-商品和服务支出
A2: 一般公共预算基本预算支出明细表-商品和服务支出
X3: 单位：元
A4: 功能科目 | D4: 科目名称 | E4: 总计 | F4: 办公费 | G4: 日常印刷费 | H4: 水费 | I4: 电费 | J4: 邮电费 | K4: 取暖费 | L4: 物业管理费 | M4: 差旅费 | N4: 日常维修(护)费 | O4: 租赁费 | P4: 会议费 | Q4: 培训费 | R4: 公务接待费 | S4: 劳务费 | T4: 工会经费 | U4: 福利费 | V4: 公务用车运行维护费 | W4: 其他交通费 | X4: 其他一般商品和服务支出
A5: 类 | B5: 款 | C5: 项
D6: 合计 | E6: =SUM(E7:E11) -> 6,919,367.16 | F6: 656,500.00 | G6: 194,000.00 | H6: 250,000.00 | I6: 311,750.00 | J6: 79,500.00 | K6: 0.00 | L6: 0.00 | M6: 145,000.00 | N6: 402,500.00 | O6: 0.00 | P6: 124,500.00 | Q6: 107,850.00 | R6: 300,100.00 | S6: 0.00 | T6: 50,600.00 | U6: 141,600.00 | V6: 28,600.00 | W6: 270,500.00 | X6: 3,798,367.1600
A7: 201 | B7: 13 | C7: 99 | D7: 其他商贸事务支出 | E7: 4,046,367.16 | F7: 143,000.00 | G7: 65,000.00 | H7: 201,000.00 | I7: 256,000.00 | J7: 12,000.00 | K7: 0.00 | L7: 0.00 | M7: 0.00 | N7: 340,000.00 | O7: 0.00 | P7: 7,000.00 | Q7: 5,700.00 | R7: 67,400.00 | S7: 0.00 | T7: 42,900.00 | U7: 134,400.00 | V7: 28,600.00 | W7: 0.00 | X7: 2,685,367.1600
A8: 201 | B8: 13 | C8: 50 | D8: 事业运行（商贸事务） | E8: 91,000.00 | F8: 7,500.00 | G8: 3,000.00 | H8: 3,000.00 | I8: 5,250.00 | J8: 7,500.00 | K8: 0.00 | L8: 0.00 | M8: 20,000.00 | N8: 7,500.00 | O8: 0.00 | P8: 7,500.00 | Q8: 4,050.00 | R8: 20,700.00 | S8: 0.00 | T8: 1,100.00 | U8: 2,400.00 | V8: 0.00 | W8: 500.00 | X8: 1,000.0000
A9: 201 | B9: 13 | C9: 99 | D9: 其他商贸事务支出 | E9: 10,000.00 | F9: 0.00 | G9: 0.00 | H9: 0.00 | I9: 0.00 | J9: 0.00 | K9: 0.00 | L9: 0.00 | M9: 0.00 | N9: 0.00 | O9: 0.00 | P9: 0.00 | Q9: 0.00 | R9: 0.00 | S9: 0.00 | T9: 0.00 | U9: 0.00 | V9: 0.00 | W9: 0.00 | X9: 10,000.0000
A10: 201 | B10: 13 | C10: 1 | D10: 行政运行（商贸事务） | E10: 2,727,000.00 | F10: 506,000.00 | G10: 126,000.00 | H10: 46,000.00 | I10: 50,500.00 | J10: 60,000.00 | K10: 0.00 | L10: 0.00 | M10: 125,000.00 | N10: 55,000.00 | O10: 0.00 | P10: 110,000.00 | Q10: 98,100.00 | R10: 170,000.00 | S10: 0.00 | T10: 6,600.00 | U10: 4,800.00 | V10: 0.00 | W10: 270,000.00 | X10: 1,099,000.0000
A11: 216 | B11: 2 | C11: 2 | D11: 一般行政管理事务（商业流通事务） | E11: 45,000.00 | F11: 0.00 | G11: 0.00 | H11: 0.00 | I11: 0.00 | J11: 0.00 | K11: 0.00 | L11: 0.00 | M11: 0.00 | N11: 0.00 | O11: 0.00 | P11: 0.00 | Q11: 0.00 | R11: 42,000.00 | S11: 0.00 | T11: 0.00 | U11: 0.00 | V11: 0.00 | W11: 0.00 | X11: 3,000.0000

Sheet 一般-个人家庭
A2: 一般公共预算基本支出明细表-对个人和家庭的补助
P3: 单位：元
A4: 功能科目 | D4: 科目名称 | E4: 总计 | F4: 离休费 | G4: 退休费 | H4: 退职(役)费 | I4: 抚恤金 | J4: 生活补助 | K4: 救济费 | L4: 医疗费 | M4: 助学金 | N4: 奖励金 | O4: 生产补贴 | P4: 其他对个人和家庭的补助
A5: 类 | B5: 款 | C5: 项
D6: 合计 | E6: =SUM(E7:E10) -> 38,340.00 | F6: 0.00 | G6: 0.00 | H6: 0.00 | I6: 38,340.00 | J6: 0.00 | K6: 0.00 | L6: 0.00 | M6: 0.00 | N6: 0.00 | O6: 0.00 | P6: 0.00
A7: 201 | B7: 13 | C7: 99 | D7: 其他商贸事务支出 | E7: 21,180.00 | F7: 0.00 | G7: 0.00 | H7: 0.00 | I7: 21,180.00 | J7: 0.00 | K7: 0.00 | L7: 0.00 | M7: 0.00 | N7: 0.00 | O7: 0.00 | P7: 0.00
A8: 201 | B8: 13 | C8: 50 | D8: 事业运行（商贸事务） | E8: 4,020.00 | F8: 0.00 | G8: 0.00 | H8: 0.00 | I8: 4,020.00 | J8: 0.00 | K8: 0.00 | L8: 0.00 | M8: 0.00 | N8: 0.00 | O8: 0.00 | P8: 0.00
A9: 201 | B9: 13 | C9: 50 | D9: 事业运行（商贸事务） | E9: 8,040.00 | F9: 0.00 | G9: 0.00 | H9: 0.00 | I9: 8,040.00 | J9: 0.00 | K9: 0.00 | L9: 0.00 | M9: 0.00 | N9: 0.00 | O9: 0.00 | P9: 0.00
A10: 201 | B10: 13 | C10: 1 | D10: 行政运行（商贸事务） | E10: 5,100.00 | F10: 0.00 | G10: 0.00 | H10: 0.00 | I10: 5,100.00 | J10: 0.00 | K10: 0.00 | L10: 0.00 | M10: 0.00 | N10: 0.00 | O10: 0.00 | P10: 0.00

Sheet 基金
A2: 政府性基金预算支出情况表
A3: 单位临湘市商务粮食局 | Q3: 单位：元
A4: 功能科目 | E4: 总计 | F4: 基本支出 | J4: 项目支出
A5: 科目编码 | D5: 科目名称 | F5: 合计 | G5: 工资福利支出 | H5: 一般商品和服务支出 | I5: 对个人和家庭的补助 | J5: 合计 | K5: 商品和服务支出 | L5: 对个人和家庭的补助支出 | M5: 基本建设 | N5: 其他资本性支出 | O5: 对企事业单位的补贴 | P5: 其他支出 | Q5: 债务利息及费用支出
A6: 类 | B6: 款 | C6: 项

Sheet 专户
A2: 纳入专户管理的非税收入预算拨款汇总表
A3: 单位临湘市商务粮食局 | Q3: 单位：元
A4: 功能科目 | E4: 总计 | F4: 基本支出 | J4: 项目支出
A5: 科目编码 | D5: 科目名称 | F5: 合计 | G5: 工资福利支出 | H5: 一般商品和服务支出 | I5: 对个人和家庭的补助 | J5: 合计 | K5: 商品和服务支出 | L5: 对个人和家庭的补助支出 | M5: 基本建设 | N5: 其他资本性支出 | O5: 对企事业单位的补贴 | P5: 其他支出 | Q5: 债务利息及费用支出
A6: 类 | B6: 款 | C6: 项

Sheet 经费拨款
A2: 一般预算拨款-经费拨款
A3: 单位临湘市商务粮食局 | Q3: 单位：元
A4: 功能科目 | E4: 总计 | F4: 基本支出 | J4: 项目支出
A5: 科目编码 | D5: 科目名称 | F5: 合计 | G5: 工资福利支出 | H5: 一般商品和服务支出 | I5: 对个人和家庭的补助 | J5: 合计 | K5: 商品和服务支出 | L5: 对个人和家庭的补助支出 | M5: 基本建设 | N5: 其他资本性支出 | O5: 对企事业单位的补贴 | P5: 其他支出 | Q5: 债务利息及费用支出
A6: 类 | B6: 款 | C6: 项
D7: 合计 | E7: =SUM(E8:E25) -> 10,796,184.00 | F7: 6,906,184.00 | G7: 6,429,844.00 | H7: 438,000.00 | I7: 38,340.00 | J7: 3,890,000.00 | K7: 3,890,000.00 | L7: 0.00 | M7: 0.00 | N7: 0.00 | O7: 0.00 | P7: 0.00 | Q7: 0.00
A8: 208 | B8: 5 | C8: 5 | D8: 机关事业单位基本养老保险缴费支出 | E8: 386,454.40 | F8: 386,454.40 | G8: 386,454.40 | H8: 0.00 | I8: 0.00 | J8: 0.00 | K8: 0.00 | L8: 0.00 | M8: 0.00 | N8: 0.00 | O8: 0.00 | P8: 0.00 | Q8: 0.00
A9: 221 | B9: 2 | C9: 1 | D9: 住房公积金 | E9: 15,285.12 | F9: 15,285.12 | G9: 15,285.12 | H9: 0.00 | I9: 0.00 | J9: 0.00 | K9: 0.00 | L9: 0.00 | M9: 0.00 | N9: 0.00 | O9: 0.00 | P9: 0.00 | Q9: 0.00
A10: 221 | B10: 2 | C10: 1 | D10: 住房公积金 | E10: 91,394.88 | F10: 91,394.88 | G10: 91,394.88 | H10: 0.00 | I10: 0.00 | J10: 0.00 | K10: 0.00 | L10: 0.00 | M10: 0.00 | N10: 0.00 | O10: 0.00 | P10: 0.00 | Q10: 0.00
A11: 216 | B11: 2 | C11: 2 | D11: 一般行政管理事务（商业流通事务） | E11: 520,452.36 | F11: 520,452.36 | G11: 475,452.36 | H11: 45,000.00 | I11: 0.00 | J11: 0.00 | K11: 0.00 | L11: 0.00 | M11: 0.00 | N11: 0.00 | O11: 0.00 | P11: 0.00 | Q11: 0.00
A12: 208 | B12: 5 | C12: 5 | D12: 机关事业单位基本养老保险缴费支出 | E12: 38,212.80 | F12: 38,212.80 | G12: 38,212.80 | H12: 0.00 | I12: 0.00 | J12: 0.00 | K12: 0.00 | L12: 0.00 | M12: 0.00 | N12: 0.00 | O12: 0.00 | P12: 0.00 | Q12: 0.00
A13: 201 | B13: 13 | C13: 50 | D13: 事业运行（商贸事务） | E13: 216,534.84 | F13: 216,534.84 | G13: 212,514.84 | H13: 0.00 | I13: 4,020.00 | J13: 0.00 | K13: 0.00 | L13: 0.00 | M13: 0.00 | N13: 0.00 | O13: 0.00 | P13: 0.00 | Q13: 0.00
A14: 208 | B14: 5 | C14: 5 | D14: 机关事业单位基本养老保险缴费支出 | E14: 39,722.40 | F14: 39,722.40 | G14: 39,722.40 | H14: 0.00 | I14: 0.00 | J14: 0.00 | K14: 0.00 | L14: 0.00 | M14: 0.00 | N14: 0.00 | O14: 0.00 | P14: 0.00 | Q14: 0.00
A15: 221 | B15: 2 | C15: 1 | D15: 住房公积金 | E15: 154,581.76 | F15: 154,581.76 | G15: 154,581.76 | H15: 0.00 | I15: 0.00 | J15: 0.00 | K15: 0.00 | L15: 0.00 | M15: 0.00 | N15: 0.00 | O15: 0.00 | P15: 0.00 | Q15: 0.00
A16: 201 | B16: 13 | C16: 99 | D16: 其他商贸事务支出 | E16: 2,808,586.52 | F16: 1,378,586.52 | G16: 1,232,406.52 | H16: 125,000.00 | I16: 21,180.00 | J16: 1,430,000.00 | K16: 1,430,000.00 | L16: 0.00 | M16: 0.00 | N16: 0.00 | O16: 0.00 | P16: 0.00 | Q16: 0.00
A17: 201 | B17: 13 | C17: 50 | D17: 事业运行（商贸事务） | E17: 906,977.56 | F17: 906,977.56 | G17: 905,977.56 | H17: 1,000.00 | I17: 0.00 | J17: 0.00 | K17: 0.00 | L17: 0.00 | M17: 0.00 | N17: 0.00 | O17: 0.00 | P17: 0.00 | Q17: 0.00
A18: 201 | B18: 13 | C18: 50 | D18: 事业运行（商贸事务） | E18: 212,478.48 | F18: 212,478.48 | G18: 204,438.48 | H18: 0.00 | I18: 8,040.00 | J18: 0.00 | K18: 0.00 | L18: 0.00 | M18: 0.00 | N18: 0.00 | O18: 0.00 | P18: 0.00 | Q18: 0.00
A19: 208 | B19: 5 | C19: 5 | D19: 机关事业单位基本养老保险缴费支出 | E19: 88,869.60 | F19: 88,869.60 | G19: 88,869.60 | H19: 0.00 | I19: 0.00 | J19: 0.00 | K19: 0.00 | L19: 0.00 | M19: 0.00 | N19: 0.00 | O19: 0.00 | P19: 0.00 | Q19: 0.00
A20: 208 | B20: 5 | C20: 5 | D20: 机关事业单位基本养老保险缴费支出 | E20: 228,487.20 | F20: 228,487.20 | G20: 228,487.20 | H20: 0.00 | I20: 0.00 | J20: 0.00 | K20: 0.00 | L20: 0.00 | M20: 0.00 | N20: 0.00 | O20: 0.00 | P20: 0.00 | Q20: 0.00
A21: 221 | B21: 2 | C21: 1 | D21: 住房公积金 | E21: 35,547.84 | F21: 35,547.84 | G21: 35,547.84 | H21: 0.00 | I21: 0.00 | J21: 0.00 | K21: 0.00 | L21: 0.00 | M21: 0.00 | N21: 0.00 | O21: 0.00 | P21: 0.00 | Q21: 0.00
A22: 221 | B22: 2 | C22: 1 | D22: 住房公积金 | E22: 67,736.64 | F22: 67,736.64 | G22: 67,736.64 | H22: 0.00 | I22: 0.00 | J22: 0.00 | K22: 0.00 | L22: 0.00 | M22: 0.00 | N22: 0.00 | O22: 0.00 | P22: 0.00 | Q22: 0.00
A23: 208 | B23: 5 | C23: 5 | D23: 机关事业单位基本养老保险缴费支出 | E23: 169,341.60 | F23: 169,341.60 | G23: 169,341.60 | H23: 0.00 | I23: 0.00 | J23: 0.00 | K23: 0.00 | L23: 0.00 | M23: 0.00 | N23: 0.00 | O23: 0.00 | P23: 0.00 | Q23: 0.00
A24: 221 | B24: 2 | C24: 1 | D24: 住房公积金 | E24: 15,888.96 | F24: 15,888.96 | G24: 15,888.96 | H24: 0.00 | I24: 0.00 | J24: 0.00 | K24: 0.00 | L24: 0.00 | M24: 0.00 | N24: 0.00 | O24: 0.00 | P24: 0.00 | Q24: 0.00
A25: 201 | B25: 13 | C25: 1 | D25: 行政运行（商贸事务） | E25: 4,799,631.04 | F25: 2,339,631.04 | G25: 2,067,531.04 | H25: 267,000.00 | I25: 5,100.00 | J25: 2,460,000.00 | K25: 2,460,000.00 | L25: 0.00 | M25: 0.00 | N25: 0.00 | O25: 0.00 | P25: 0.00 | Q25: 0.00

Sheet 专项
A2: 专项资金预算汇总表
H3: 单位：元
A4: 项目名称 | B4: 总计 | C4: 一般预算拨款 | E4: 纳入专户管理的非税收入拨款 | F4: 政府性基金拨款 | G4: 上级补助收入 | H4: 其他收入
C5: 经费拨款 | D5: 纳入预算管理的非税收入拨款
B6: =SUM(B7:B13) -> 5427367.16 | C6: 3890000.00 | D6: 1537367.16 | E6: 0.00 | F6: 0.00 | G6: 0.00 | H6: 0.00
A7: 商务粮食局综合执法 | B7: 160000.00 | C7: 160000.00 | D7: 0.00 | E7: 0.00 | F7: 0.00 | G7: 0.00 | H7: 0.00
A8: 商贸粮食专项业务经费 | B8: 300000.00 | C8: 300000.00 | D8: 0.00 | E8: 0.00 | F8: 0.00 | G8: 0.00 | H8: 0.00
A9: 粮食企业改制工作经费 | B9: 2000000.00 | C9: 2000000.00 | D9: 0.00 | E9: 0.00 | F9: 0.00 | G9: 0.00 | H9: 0.00
A10: 征收成本 | B10: 10000.00 | C10: 0.00 | D10: 10000.00 | E10: 0.00 | F10: 0.00 | G10: 0.00 | H10: 0.00
A11: 市场安全隐患改造经费 | B11: 1330000.00 | C11: 1330000.00 | D11: 0.00 | E11: 0.00 | F11: 0.00 | G11: 0.00 | H11: 0.00
A12: 食品安全监督抽样和检验经费 | B12: 100000.00 | C12: 100000.00 | D12: 0.00 | E12: 0.00 | F12: 0.00 | G12: 0.00 | H12: 0.00
A13: 征收成本 | B13: 1527367.16 | C13: 0.00 | D13: 1527367.16 | E13: 0.00 | F13: 0.00 | G13: 0.00 | H13: 0.00

Sheet 三公
A1: 一般公共预算“三公”经费预算表
A2: 单位：临湘市商务粮食局 | G2: 单位：元
A3: 单位名称 | B3: 三公经费预算数(一般公共预算拨款)
B4: 小计 | C4: 公务接待费 | D4: 公务用车购置及运行费 | E4: 其中： | G4: 因公出国(境)费用
E5: 公务用车购置费 | F5: 公务用车运行维护费
A6: 合计 | B6: =SUM(B7:B12) -> 377,700.00 | C6: 349,100.00 | D6: 28,600.00 | E6: 0.00 | F6: 28,600.00 | G6: 0.00
A7: 临湘市商务粮食局 | B7: 195,000.00 | C7: 195,000.00 | D7: 0.00 | E7: 0.00 | F7: 0.00 | G7: 0.00
A8: 临湘市外贸事务管理中心 | B8: 3,000.00 | C8: 3,000.00 | D8: 0.00 | E8: 0.00 | F8: 0.00 | G8: 0.00
A9: 临湘市物资事务管理中心 | B9: 3,000.00 | C9: 3,000.00 | D9: 0.00 | E9: 0.00 | F9: 0.00 | G9: 0.00
A10: 临湘市市场建设管理中心 | B10: 96,000.00 | C10: 67,400.00 | D10: 28,600.00 | E10: 0.00 | F10: 28,600.00 | G10: 0.00
A11: 临湘市商务综合执法大队 | B11: 20,700.00 | C11: 20,700.00 | D11: 0.00 | E11: 0.00 | F11: 0.00 | G11: 0.00
A12: 临湘市商业事务管理中心 | B12: 60,000.00 | C12: 60,000.00 | D12: 0.00 | E12: 0.00 | F12: 0.00 | G12: 0.00

Sheet 绩效申报
A1: 项目绩效目标申报表
A2: 单位：临湘市商务粮食局 | K2: 单位：万元
A3: 单位编码 | B3: 单位名称 | C3: 申报金额 | D3: 项目实施产出成果目标 | H3: 项目绩效目标
D4: 定量目标（成果目标） | G4: 定性目标（成果目标） | H4: 定量目标（绩效目标） | K4: 定性目标（绩效目标）
D5: 目标类型 | E5: 目标（指标）内容 | F5: 目标（指标）值 | H5: 效益类型 | I5: 目标（指标）内容B | J5: 目标（指标）值B
A6: ** | B6: ** | C6: 1 | D6: 2 | E6: 3 | F6: 4 | G6: 5 | H6: 6 | I6: 7 | J6: 8 | K6: 9
B7: 合计 | C7: =SUM(C8:C10) -> 516.74
A8: 801001 | B8: 临湘市商务粮食局 | C8: 221.00
A9: 801006 | B9: 临湘市市场建设管理中心 | C9: 133.00
A10: 801006 | B10: 临湘市市场建设管理中心 | C10: 162.74 | D10: 1.00 | E10: 2.00 | F10: 3.00 | G10: 4.00 | H10: 1.00 | I10: 2.00 | J10: 3.00 | K10: 4.00

Sheet 绩效目标整体申报
A1: 整体支出绩效目标申报表
A2: 单位：临湘市商务粮食局 | X2: 单位：万元
A3: 单位编码 | B3: 单位名称 | C3: 预算绩效管理联络员 | D3: 联系电话 | E3: 人员编制数 | F3: 实有人数 | G3: 单位职能 | H3: 单位年度收入预算（万元） | M3: 单位年度支出预算（万元） | T3: 部门整体支出年度绩效目标 | U3: 部门整体支出年度绩效指标 | W3: 其他说明的问题 | X3: 财政部门审核意见
H4: 收入合计 | I4: 公共财政拨款 | J4: 政府性基金拨款 | K4: 非税收入拨款 | L4: 其他拨款 | M4: 支出合计 | N4: 基本支出 | O4: 项目支出 | P4: 其中三公经费预算（万元） | Q4: 公务用车运行和购置费 | R4: 公务接待费 | S4: 因公出国（境）费 | U4: 数量指标 | V4: 效益指标
A5: ** | B5: ** | C5: ** | D5: ** | E5: 1 | F5: 2 | G5: 3 | H5: 4 | I5: 5 | J5: 6 | K5: 7 | L5: 8 | M5: 9 | N5: 10 | O5: 11 | P5: 12 | Q5: 13 | R5: 14 | S5: 15 | T5: 16 | U5: 17 | V5: 18 | W5: 19 | X5: 20
B6: 合计 | E6: =SUM(E7:E12) -> 259 | F6: =SUM(F7:F12) -> 265 | H6: =SUM(H7:H12) -> 1,255,346.33 | I6: 1,153,697.54 | J6: 0.00 | K6: 101,420.00 | L6: 228.79 | M6: 1,255,346.33 | N6: 1,254,795.59 | O6: 550.74 | P6: 27.60 | Q6: 2.86 | R6: 24.74 | S6: 0.00
A7: 801001 | B7: 临湘市商务粮食局 | C7: 江文 | D7: 3722768 | E7: 51 | F7: 55 | G7: 贯彻执行国家国内外贸易经济的发展战略，政策，方针。负责推进流通产业结构调整及浮标产业行业监管，拟订全市国内贸易发展及浮标粮食流通体制改革方案并组织实施。等等 | H7: 891.70 | I7: 681.70 | J7: 0.00 | K7: 10.00 | L7: 200.00 | M7: 891.70 | N7: 503.70 | O7: 388.00 | P7: 12.00 | Q7: 0.00 | R7: 12.00 | S7: 0.00
A8: 801002 | B8: 临湘市商务综合执法大队 | C8: 方建英 | D8: 3107509 | E8: 15 | F8: 15 | G8: 综合执法 | H8: 1,252,722.20 | I8: 1,152,722.20 | J8: 0.00 | K8: 100,000.00 | L8: 0.00 | M8: 1,252,722.20 | N8: 1,252,722.20 | O8: 0.00 | P8: 0.00 | Q8: 0.00 | R8: 0.00 | S8: 0.00
A9: 801003 | B9: 临湘市商业事务管理中心 | C9: 许芳 | D9: 3722756 | E9: 10 | F9: 12 | G9: 负责管理本单位国有资产，处理改制后的遗留问题，确保系统稳定。 | H9: 93.68 | I9: 64.89 | J9: 0.00 | K9: 0.00 | L9: 28.79 | M9: 93.68 | N9: 93.68 | O9: 0.00 | P9: 6.00 | Q9: 0.00 | R9: 6.00 | S9: 0.00
A10: 801004 | B10: 临湘市外贸事务管理中心 | C10: 黄军珊 | D10: 3722768 | E10: 3 | F10: 3 | G10: 管理好国有资产，处理改制遗留问题，维护稳定 | H10: 30.90 | I10: 30.90 | J10: 0.00 | K10: 0.00 | L10: 0.00 | M10: 30.90 | N10: 30.90 | O10: 0.00 | P10: 0.00 | Q10: 0.00 | R10: 0.00 | S10: 0.00
A11: 801005 | B11: 临湘市物资事务管理中心 | C11: 方秋玲 | D11: 3803895 | E11: 3 | F11: 3 | G11: 管理好国有资产，处理改制遗留问题，维护稳定 | H11: 28.00 | I11: 28.00 | J11: 0.00 | K11: 0.00 | L11: 0.00 | M11: 28.00 | N11: 28.00 | O11: 0.00 | P11: 0.00 | Q11: 0.00 | R11: 0.00 | S11: 0.00
A12: 801006 | B12: 临湘市市场建设管理中心 | C12: 刘艳 | D12: 3766186 | E12: 177 | F12: 177 | G12: 为市场建设提供管理保障。负责贯彻落实市委、市政府有关市场建设管理的政策组织、落实市场网点的建设规划、协同相关职能部门对城区街道、路面的游摊、散贩进行整治和规范。 | H12: 1,579.85 | I12: 169.85 | J12: 0.00 | K12: 1,410.00 | L12: 0.00 | M12: 1,579.85 | N12: 1,417.11 | O12: 162.74 | P12: 9.60 | Q12: 2.86 | R12: 6.74 | S12: 0.00
